bitfinex/quotes_ETHUSD_20250217
["timestamp","ask_amount","ask_price","bid_price","bid_amount"]
[1739782340831,2.94879,2713.0,2712.4,4.48396]
[1739782341139,2.94859,2713.2,2712.6,3.68648]
[1739782341305,2.94835,2713.4,2712.7,3.68632]
[1739782341706,2.94851,2713.3,2712.7,3.68628]
[1739782341908,2.94835,2713.4,2712.8,3.68616]
[1739782342138,2.94835,2713.4,2712.9,0.7946]
[1739782342318,0.7992,2713.7,2712.9,0.7946]
[1739782342516,2.94838,2713.4,2712.9,0.7946]
[1739782342817,2.94811,2713.6,2712.9,1.242695]
[1739782343016,2.94811,2713.6,2713.1,3.68574]
[1739782343421,2.94811,2713.6,2712.9,8.16661]
[1739782343723,2.9483,2713.5,2712.9,0.7946]
[1739782344034,0.301,2713.8,2712.9,0.7946]
[1739782344035,2.94858,2713.2,2712.9,0.7946]
[1739782344344,2.94846,2713.3,2712.9,0.7946]
[1739782344345,2.94865,2713.1,2712.9,0.7946]
[1739782344544,2.94865,2713.1,2712.5,0.8131]
[1739782344751,2.94883,2713.0,2712.5,0.8131]
[1739782344908,2.94883,2713.0,2712.5,4.4997]
[1739782345431,2.9489,2712.9,2712.5,0.8131]
[1739782345836,2.94883,2713.0,2712.5,0.8131]
[1739782346432,2.94898,2712.8,2712.5,0.8131]
[1739782346822,2.94899,2712.8,2712.5,0.8131]
[1739782347448,2.94916,2712.7,2712.5,0.8131]
[1739782347851,2.9492,2712.6,2712.3,0.59558149]
[1739782348053,2.94941,2712.4,2712.3,0.59558149]
[1739782350022,2.94931,2712.5,2712.3,0.64966477]
[1739782350455,1.0571,2713.0,2712.3,0.64966477]
[1739782350656,2.94941,2712.4,2712.3,0.64966477]
[1739782351450,2.94941,2712.4,2712.3,0.59558149]
[1739782351627,2.94941,2712.4,2712.3,0.64966477]
[1739782352224,3.539289,2712.4,2712.3,0.64966477]
[1739782353158,3.539289,2712.4,2712.3,0.59558149]
[1739782354599,2.94941,2712.4,2712.3,0.59558149]
[1739782354758,2.94941,2712.4,2712.3,0.65087131]
[1739782355465,2.94941,2712.4,2712.3,0.59558149]
[1739782355963,3.73371,2712.4,2712.3,0.59558149]
[1739782356164,12.96571,2712.4,2712.3,0.59558149]
[1739782356364,14.557219,2712.4,2712.3,0.59558149]
[1739782356591,5.325219,2712.4,2712.3,0.59558149]
[1739782356795,3.73371,2712.4,2712.3,0.59558149]
[1739782358165,12.96571,2712.4,2712.3,0.59558149]
[1739782358367,3.73371,2712.4,2712.3,0.59558149]
[1739782362199,4.03071,2712.4,2712.3,0.65119535]
[1739782362396,4.03071,2712.4,2712.3,0.59558149]
[1739782362619,4.80279198,2712.4,2712.3,0.59558149]
[1739782362999,2.94963,2712.2,2712.1,0.005]
[1739782366451,5.94963,2712.2,2712.1,0.005]
[1739782366751,15.18263,2712.2,2712.1,0.005]
[1739782367543,15.95983,2712.2,2712.1,0.005]
[1739782367743,17.9576742,2712.2,2712.1,0.005]
[1739782368952,8.7246742,2712.2,2712.1,0.005]
[1739782369968,6.72683,2712.2,2712.1,0.005]
[1739782370483,5.94963,2712.2,2712.1,0.005]
[1739782370680,6.24463,2712.2,2712.1,0.05905528]
[1739782370857,6.24463,2712.2,2712.1,0.005]
[1739782371054,3.24463,2712.2,2712.1,0.05905528]
[1739782371259,3.24463,2712.2,2712.1,0.005]
[1739782371478,2.94943,2712.4,2712.1,0.05905528]
[1739782371680,2.94943,2712.4,2712.1,0.005]
[1739782371977,2.94963,2712.2,2712.1,0.005]
[1739782372177,5.89913,2712.3,2712.1,0.005]
[1739782372376,2.94963,2712.2,2712.1,0.005]
[1739782373441,2.94953,2712.3,2712.1,0.005]
[1739782373875,2.94937,2712.5,2712.2,0.7955]
[1739782375076,2.94952,2712.3,2712.2,0.7955]
[1739782376643,0.295,2712.6,2712.2,0.7955]
[1739782376843,6.19355,2712.6,2712.2,0.7955]
[1739782377183,2.94914,2712.7,2712.2,0.7955]
[1739782377378,2.94952,2712.3,2712.2,0.7955]
[1739782377984,2.94948,2712.4,2712.2,0.7955]
[1739782378289,5.89896,2712.4,2712.2,0.7955]
[1739782378486,5.89897,2712.4,2712.2,0.7955]
[1739782378693,2.94948,2712.4,2712.2,0.7955]
[1739782379046,2.94927,2712.6,2712.2,0.7955]
[1739782379272,2.9491,2712.7,2712.2,4.48246]
[1739782379458,2.94922,2712.6,2712.2,0.7955]
[1739782379659,5.89813,2712.8,2712.2,0.7955]
[1739782379847,2.94905,2712.8,2712.2,4.48252]
[1739782380057,2.94909,2712.7,2712.3,0.05380412]
[1739782380378,2.94939,2712.5,2712.2,0.7955]
[1739782380685,2.94944,2712.4,2712.2,0.7955]
[1739782381059,5.89892,2712.4,2712.2,0.7955]
[1739782381378,2.94944,2712.4,2712.2,0.7955]
[1739782382559,2.94936,2712.5,2712.2,0.7955]
[1739782382758,2.94963,2712.2,2712.1,0.005]
[1739782382964,3.24192,2712.9,2712.1,0.005]
[1739782383170,2.94937,2712.5,2712.1,0.005]
[1739782383378,2.94914,2712.7,2712.1,4.24206]
[1739782383580,2.94924,2712.6,2712.2,0.7866]
[1739782383776,5.89833,2712.7,2712.2,0.7866]
[1739782383948,2.94928,2712.6,2712.2,0.7866]
[1739782384155,2.9492,2712.6,2712.2,0.7866]
[1739782384687,2.94914,2712.7,2712.2,0.7866]
[1739782384854,2.94931,2712.5,2712.2,0.7866]
[1739782385048,2.94925,2712.6,2712.2,0.7866]
[1739782385453,2.94931,2712.5,2712.2,0.7866]
[1739782385689,2.94928,2712.6,2712.2,0.7866]
[1739782385891,2.94927,2712.6,2712.2,0.7866]
[1739782386089,2.94934,2712.5,2712.2,0.7866]
[1739782386452,2.94917,2712.7,2712.2,0.7866]
[1739782386655,2.94922,2712.6,2712.2,0.7866]
[1739782386853,2.94948,2712.4,2712.2,0.7866]
[1739782387570,2.94943,2712.4,2712.2,0.7866]
[1739782387781,2.94931,2712.5,2712.2,0.7866]
[1739782388891,2.94906,2712.8,2712.2,0.7866]
[1739782389195,2.94933,2712.5,2712.2,0.7866]
[1739782389404,2.94947,2712.4,2712.2,0.7866]
[1739782389562,2.94952,2712.3,2712.2,0.7866]
[1739782391007,2.94945,2712.4,2712.2,0.7866]
[1739782391465,2.9494,2712.5,2712.2,0.7866]
[1739782392097,2.94916,2712.7,2712.2,0.7866]
[1739782392994,2.94916,2712.7,2712.2,4.4736]
[1739782393200,1.48061922,2713.1,2712.3,0.55]
[1739782393376,0.29,2713.1,2712.3,0.55]
[1739782393585,2.94887,2712.9,2712.3,0.55]
[1739782393792,2.94914,2712.7,2712.3,0.55]
[1739782394298,2.94914,2712.7,2712.2,0.7866]
[1739782394299,2.94932,2712.5,2712.2,0.7866]
[1739782395078,2.94905,2712.8,2712.3,0.05314796]
[1739782395306,2.9492,2712.6,2712.3,0.05314796]
[1739782395470,2.9492,2712.6,2712.2,0.7866]
[1739782395666,2.9492,2712.6,2712.4,0.05314796]
[1739782395983,2.9492,2712.6,2712.5,0.05314796]
[1739782396181,2.9492,2712.6,2712.2,0.7866]
[1739782396398,2.9494,2712.5,2712.3,0.05314796]
[1739782396565,2.94916,2712.7,2712.2,0.7866]
[1739782396771,5.89835,2712.7,2712.2,4.47356]
[1739782396972,2.9492,2712.6,2712.3,0.05314796]
[1739782397183,2.9492,2712.6,2712.2,0.7866]
[1739782397408,2.9492,2712.6,2712.3,0.05314796]
[1739782397706,2.9492,2712.6,2712.2,0.7866]
[1739782397895,2.9493,2712.5,2712.4,0.05314796]
[1739782398098,2.9493,2712.5,2712.2,0.7866]
[1739782398283,2.9493,2712.5,2712.4,0.05314796]
[1739782398483,2.9493,2712.5,2712.2,0.7866]
[1739782398682,2.94913,2712.7,2712.4,0.05314796]
[1739782398899,0.68946466,2713.1,2712.4,3.6867]
[1739782398900,2.94893,2712.9,2712.4,3.6867]
[1739782399089,2.94901,2712.8,2712.5,0.05314796]
[1739782399291,2.94894,2712.9,2712.5,0.05314796]
[1739782399507,0.39946466,2713.1,2712.5,0.05314796]
[1739782399703,2.94876,2713.0,2712.5,3.73969796]
[1739782399880,2.94876,2713.0,2712.6,0.8109]
[1739782400087,2.94882,2713.0,2712.6,0.86404796]
[1739782400284,3.34821466,2713.1,2712.6,4.55043796]
[1739782400489,2.94859,2713.2,2712.7,3.6863]
[1739782400805,2.94859,2713.2,2712.8,0.05299409]
[1739782401105,0.288,2713.3,2712.8,0.05299409]
[1739782401308,2.9487,2713.1,2712.8,0.05299409]
[1739782401514,2.9487,2713.1,2712.6,4.49736]
[1739782401811,2.94876,2713.0,2712.6,0.8109]
[1739782402005,2.94876,2713.0,2712.7,0.34063657]
[1739782402193,2.94864,2713.2,2712.7,0.34063657]
[1739782402394,2.94855,2713.2,2712.8,3.68621]
[1739782402598,2.94839,2713.4,2712.8,3.68621]
[1739782402798,2.94855,2713.2,2712.9,0.0529212]
[1739782402996,3.613259,2713.4,2712.9,3.7389912]
[1739782403176,2.94851,2713.3,2712.9,0.0529212]
[1739782403376,3.613259,2713.4,2712.9,0.0529212]
[1739782403589,2.94856,2713.2,2712.7,3.68629]
[1739782404000,2.9487,2713.1,2712.8,0.05247581]
[1739782404180,2.9487,2713.1,2712.7,0.55]
[1739782404382,2.94849,2713.3,2712.8,3.73861581]
[1739782404723,2.94849,2713.3,2712.9,3.68605]
[1739782404899,2.94849,2713.3,2712.8,0.93107139]
[1739782405219,3.23638,2713.4,2712.8,8.06870378]
[1739782405389,2.94865,2713.1,2712.9,0.33999011]
[1739782405710,2.94865,2713.1,2712.9,0.2875143]
[1739782405711,2.94876,2713.0,2712.9,0.2875143]
[1739782406017,2.94876,2713.0,2712.9,1.0391143]
[1739782406204,2.94876,2713.0,2712.9,0.2875143]
[1739782406514,2.94876,2713.0,2712.9,0.04875724]
[1739782406930,2.94865,2713.1,2712.6,0.0627973]
[1739782407115,2.94881,2713.0,2712.9,0.04875724]
[1739782407587,2.94881,2713.0,2712.6,0.0627973]
[1739782407917,2.9489,2712.9,2712.7,0.04875724]
[1739782408116,2.94877,2713.0,2712.7,0.04875724]
[1739782409328,2.94862,2713.2,2712.7,0.04875724]
[1739782409785,2.94867,2713.1,2712.7,0.04875724]
[1739782410096,0.288,2713.4,2712.7,3.73503724]
[1739782410286,2.94863,2713.2,2712.7,3.73503724]
[1739782411433,0.288,2713.4,2712.8,0.55]
[1739782411636,2.94807,2713.7,2713.0,0.55]
[1739782411939,2.94807,2713.7,2713.2,3.68568]
[1739782412097,0.286,2713.8,2713.2,3.68568]
[1739782412098,2.94784,2713.9,2713.3,3.68548]
[1739782412300,2.94784,2713.9,2713.3,3.73397005]
[1739782412501,2.94792,2713.8,2713.3,3.73397005]
[1739782412730,2.94814,2713.6,2713.3,0.04849005]
[1739782412934,0.286,2714.0,2713.3,0.04849005]
[1739782413117,2.94804,2713.7,2713.2,4.23563]
[1739782413428,2.948,2713.8,2713.2,4.23563]
[1739782413582,2.948,2713.8,2713.3,0.04849005]
[1739782413783,2.948,2713.7,2713.2,4.23563]
[1739782414029,2.948,2713.7,2713.3,0.04849005]
[1739782414243,2.94775,2714.0,2713.4,3.68532]
[1739782414517,2.94787,2713.9,2713.5,0.8307]
[1739782414740,2.94787,2713.9,2713.5,0.87919005]
[1739782415028,2.94784,2713.9,2713.5,0.87919005]
[1739782415252,2.9473,2714.4,2713.5,0.87919005]
[1739782415253,1.83792875,2717.7,2717.2,3.68025]
[1739782415386,0.8131,2719.6,2717.7,0.2]
[1739782415586,0.19206618,2719.0,2718.7,0.55]
[1739782415894,0.001,2719.9,2718.9,3.5039482]
[1739782416092,2.94174,2719.5,2718.8,0.04768869]
[1739782416291,2.83501105,2719.4,2719.0,0.04555418]
[1739782416511,1.56953982,2719.4,2718.4,0.3088]
[1739782416818,1.56953982,2719.4,2717.9,4.57121276]
[1739782416819,2.94267,2718.7,2717.9,4.57121276]
[1739782417143,3.8876187,2718.6,2718.0,0.03675917]
[1739782417290,3.8876187,2718.6,2717.4,0.19209134]
[1739782417291,3.0,2718.4,2717.4,0.19209134]
[1739782417492,0.6505717,2718.3,2717.4,0.19209134]
[1739782417727,7.31498276,2717.6,2717.4,0.19209134]
[1739782417890,11.35704498,2717.5,2716.5,3.68114]
[1739782418086,11.35704498,2717.5,2716.3,0.7641]
[1739782418087,0.37,2717.4,2716.3,0.7641]
[1739782418308,0.37,2717.4,2716.5,3.68119]
[1739782418509,0.55988983,2717.3,2716.3,0.7641]
[1739782418714,0.55988983,2717.3,2716.5,3.68119]
[1739782418911,0.18888983,2717.3,2716.5,0.55]
[1739782419232,8.282,2717.6,2717.0,3.68052]
[1739782419445,8.282,2717.6,2717.2,3.68015]
[1739782419612,8.282,2717.6,2717.5,3.67985]
[1739782419813,9.1102,2717.6,2717.3,3.68011]
[1739782420314,9.1102,2717.6,2717.4,3.67997]
[1739782420511,9.1102,2717.6,2717.5,3.67985]
[1739782420512,8.282,2717.6,2717.5,3.67985]
[1739782420824,0.9164137,2718.6,2717.4,3.67998]
[1739782421035,3.1992567,2718.5,2717.4,3.67998]
[1739782421237,3.1992567,2718.5,2717.3,0.8297]
[1739782421238,1.17725237,2718.4,2717.3,0.8297]
[1739782421451,0.37,2718.3,2717.7,3.67952]
[1739782421652,1.17725237,2718.4,2717.8,3.67941]
[1739782422020,0.294267,2718.6,2717.3,0.8297]
[1739782422021,0.294267,2718.6,2717.6,0.55]
[1739782422185,0.8085,2719.2,2717.6,0.55]
[1739782422326,0.369,2719.1,2718.2,3.67887]
[1739782422533,0.369,2719.1,2718.3,3.67863]
[1739782422837,0.369,2719.1,2717.5,0.55]
[1739782423038,0.94535,2719.0,2718.3,3.67876]
[1739782423338,0.368,2718.9,2718.4,3.6786]
[1739782423571,0.368,2718.9,2718.2,3.67888]
[1739782423738,0.368,2718.9,2718.3,3.67875]
[1739782423942,0.368,2718.9,2718.4,3.67861]
[1739782424131,0.20348671,2718.9,2718.3,3.67875]
[1739782424326,0.20348671,2718.9,2718.1,3.67902]
[1739782424596,2.20724,2718.4,2717.6,0.28082397]
[1739782424879,0.6221467,2718.4,2717.6,0.28082397]
[1739782425052,1.07136473,2718.8,2717.8,3.67941]
[1739782425258,0.367,2718.7,2718.3,3.6787]
[1739782425441,0.367,2718.7,2717.7,0.8058]
[1739782425642,0.33555267,2718.8,2717.8,0.55]
[1739782425962,1.1755,2719.2,2718.6,3.67829]
[1739782426277,0.367,2719.3,2718.8,3.67808]
[1739782426645,8.273,2719.5,2718.8,3.67808]
[1739782426943,1.27541,2719.4,2718.9,3.67784]
[1739782427142,0.90841,2719.4,2718.9,3.67784]
[1739782427375,0.90841,2719.4,2718.8,3.67809]
[1739782427674,0.954741,2719.3,2717.8,3.0]
[1739782427875,3.161201,2719.3,2718.5,3.67848]
[1739782428035,2.20653,2719.2,2718.3,3.67876]
[1739782428241,2.20675,2719.0,2718.1,3.67894]
[1739782428454,0.3161271,2719.1,2718.1,3.67894]
[1739782428650,0.3161271,2719.1,2718.5,3.67847]
[1739782428874,2.20653,2719.2,2718.5,3.67848]
[1739782429041,0.954741,2719.3,2717.7,1.36523703]
[1739782429238,2.20677,2719.0,2717.7,1.36523703]
[1739782429476,2.20664,2719.1,2718.4,3.67863]
[1739782429892,2.20669,2719.0,2718.2,3.6789]
[1739782430044,2.20669,2719.0,2718.1,3.67903]
[1739782430245,2.20669,2719.0,2718.1,3.67893]
[1739782430451,2.20693,2718.8,2717.9,3.67926]
[1739782430774,0.220669,2718.9,2718.3,3.67874]
[1739782431353,0.364,2718.9,2718.5,3.6784]
[1739782431559,2.7568551,2719.2,2718.5,3.6784]
[1739782431960,0.5503151,2719.2,2718.7,3.67814]
[1739782432160,2.7568551,2719.2,2718.5,3.6784]
[1739782432360,0.37115961,2719.1,2718.5,3.6784]
[1739782432655,0.37115961,2719.1,2718.6,3.67826]
[1739782433204,0.37115961,2719.1,2718.6,3.67832]
[1739782433341,0.37115961,2719.1,2718.5,3.6784]
[1739782433540,0.37115961,2719.1,2717.8,3.55]
[1739782433780,0.1863151,2719.2,2718.5,3.6784]
[1739782434006,0.1863151,2719.2,2718.1,0.55]
[1739782434185,2.20661,2719.1,2718.4,3.67852]
[1739782434349,0.23929251,2719.0,2718.4,3.67852]
[1739782434553,0.23929251,2719.0,2718.4,7.35704]
[1739782434807,0.23929251,2719.0,2718.5,3.67842]
[1739782435096,0.23929251,2719.0,2718.7,3.67822]
[1739782435297,0.1863151,2719.2,2718.7,3.67822]
[1739782435794,0.8111,2719.6,2718.1,4.10873634]
[1739782435795,0.001,2719.9,2718.9,3.67783]
[1739782435943,2.20642,2719.4,2718.7,3.67814]
[1739782436145,2.2063,2719.5,2718.8,3.67807]
[1739782436341,2.2063,2719.5,2718.9,3.67791]
[1739782436643,0.25673,2719.4,2718.9,3.67791]
[1739782436843,0.25673,2719.4,2719.1,3.67768]
[1739782437139,2.20616,2719.7,2719.1,3.67768]
[1739782437248,0.001,2719.9,2719.3,7.35473]
[1739782437451,2.20697,2719.9,2719.3,3.67732]
[1739782437670,2.20696,2719.9,2719.3,3.67732]
[1739782437875,0.001,2719.9,2719.4,3.67718]
[1739782438182,0.001,2719.9,2718.8,0.27951654]
[1739782438183,2.758896,2719.8,2719.1,3.67761]
[1739782438343,0.552836,2719.8,2719.3,3.67733]
[1739782438543,0.552836,2719.8,2719.3,3.67732]
[1739782438743,0.001,2719.9,2719.3,3.67732]
[1739782438962,2.20697,2719.9,2719.3,3.67732]
[1739782439180,2.20696,2719.9,2719.3,3.6773]
[1739782439957,0.001,2719.9,2719.5,3.67713]
[1739782440156,0.001,2719.9,2719.3,0.8262]
[1739782440157,2.648732,2719.9,2719.3,0.8262]
[1739782440346,2.20613,2719.7,2719.3,0.8262]
[1739782440550,0.001,2719.9,2719.3,0.8262]
[1739782440764,0.001,2719.9,2719.4,3.67719]
[1739782440970,2.20703,2719.9,2719.3,4.50361]
[1739782441170,0.001,2719.9,2719.3,0.8262]
[1739782441385,2.20698,2719.9,2719.3,4.50351]
[1739782441688,2.426778,2719.8,2719.3,0.8262]
[1739782441888,0.001,2719.9,2719.5,3.67713]
[1739782442391,0.001,2719.9,2719.6,3.67691]
[1739782442866,2.20697,2719.9,2719.4,1.28548527]
[1739782443398,0.001,2719.9,2719.4,4.96271527]
[1739782443599,2.20698,2719.9,2719.4,4.96275527]
[1739782443764,2.20606,2719.8,2719.4,1.28548527]
[1739782444102,2.20606,2719.8,2719.6,0.47199589]
[1739782444264,0.001,2719.9,2719.6,0.47199589]
[1739782444466,2.20604,2719.8,2719.6,0.47199589]
[1739782444666,4.41215,2719.8,2719.6,0.47199589]
[1739782444867,2.20604,2719.8,2719.6,0.47199589]
[1739782445366,2.20612,2719.7,2719.6,0.47199589]
[1739782445610,2.2062,2719.6,2719.5,0.26582799]
[1739782446600,2.647432,2719.6,2719.5,0.26582799]
[1739782446915,2.647432,2719.6,2719.5,1.22058197]
[1739782447087,2.647432,2719.6,2719.5,2.08904491]
[1739782447803,2.20609,2719.8,2719.5,3.39897092]
[1739782448003,0.001,2719.9,2719.5,3.39897092]
[1739782448004,2.2062,2719.6,2719.5,3.39897092]
[1739782448206,2.2061,2719.8,2719.5,3.39897092]
[1739782448365,2.20612,2719.7,2719.5,3.39897092]
[1739782448568,2.2062,2719.6,2719.5,3.39897092]
[1739782448773,2.2062,2719.6,2719.5,2.17838895]
[1739782449227,2.2062,2719.6,2719.5,0.86846294]
[1739782449526,1.83868,2719.4,2719.3,0.55604761]
[1739782450984,1.83868,2719.4,2719.3,1.03374657]
[1739782451185,2.286215,2719.4,2719.3,6.57e-06]
[1739782451379,12.1173617,2719.4,2719.3,6.57e-06]
[1739782451793,12.8719617,2719.4,2719.3,6.57e-06]
[1739782453409,3.6629617,2719.4,2719.3,6.57e-06]
[1739782453566,3.040815,2719.4,2719.3,6.57e-06]
[1739782453991,12.249815,2719.4,2718.6,0.0984]
[1739782454198,1.83911,2718.7,2718.6,0.0984]
[1739782454506,2.95381,2718.7,2718.6,0.0984]
[1739782454907,1.83981,2717.7,2717.5,0.8135]
[1739782455105,1.1147,2718.7,2717.5,0.8135]
[1739782455106,3.67953,2717.8,2717.5,0.8135]
[1739782455273,1.83994,2717.5,2717.1,0.7702]
[1739782455473,1.84005,2717.4,2717.1,0.7702]
[1739782455675,1.84005,2717.4,2716.8,0.7702]
[1739782455897,3.68009,2717.4,2716.8,0.7702]
[1739782456098,1.84007,2717.3,2716.8,0.7702]
[1739782456617,1.84004,2717.4,2716.8,0.7702]
[1739782456818,1.84004,2717.4,2716.8,4.896062]
[1739782457118,1.84004,2717.4,2717.0,3.0]
[1739782457320,1.84004,2717.4,2716.8,4.215302]
[1739782457485,1.84007,2717.3,2716.8,4.215302]
[1739782457685,1.84007,2717.3,2716.9,0.55]
[1739782458098,0.8258,2717.9,2717.2,0.55]
[1739782458099,1.83991,2717.6,2717.2,0.55]
[1739782458499,1.84003,2717.4,2717.1,0.28311183]
[1739782458699,1.83996,2717.5,2717.1,0.28311183]
[1739782459109,1.83999,2717.4,2717.1,0.28311183]
[1739782459511,1.84006,2717.3,2717.1,0.28311183]
[1739782459881,1.84012,2717.2,2717.1,0.28311183]
[1739782460087,0.349,2717.8,2716.7,0.55]
[1739782460288,1.8404,2716.8,2716.4,0.8238]
[1739782460622,1.84005,2717.4,2716.7,4.23093]
[1739782460623,1.84019,2717.2,2716.7,4.23093]
[1739782460799,1.84017,2717.2,2716.7,0.55]
[1739782460994,3.68035,2717.2,2716.7,0.55]
[1739782461202,1.84038,2716.9,2716.6,3.0]
[1739782461410,1.84055,2716.6,2716.4,1.71090597]
[1739782461610,1.84042,2716.8,2716.4,1.71090597]
[1739782461813,1.84046,2716.7,2716.4,1.71090597]
[1739782463928,1.84067,2716.4,2716.3,0.42984676]
[1739782464499,1.84067,2716.4,2716.3,0.26826937]
[1739782465047,1.8406,2716.5,2716.3,0.26826937]
[1739782465190,1.84067,2716.4,2716.3,0.26826937]
[1739782466093,1.84067,2716.4,2716.1,0.33517782]
[1739782466420,1.84074,2716.3,2716.1,0.33517782]
[1739782466731,1.8408,2716.2,2716.1,0.33517782]
[1739782466927,1.84087,2716.1,2715.9,0.55]
[1739782467093,1.84081,2716.2,2715.9,0.55]
[1739782467431,1.84091,2716.1,2715.9,0.55]
[1739782468205,1.84091,2716.1,2715.7,4.91642197]
[1739782468804,0.218741,2716.7,2715.7,4.91642197]
[1739782468805,1.84101,2715.9,2715.7,0.8116]
[1739782469126,1.84101,2715.9,2715.3,4.36582973]
[1739782469127,1.84101,2715.9,2715.4,6.68269]
[1739782469328,1.84092,2716.1,2715.5,3.68247]
[1739782469502,1.84092,2716.1,2715.5,0.55]
[1739782469697,1.84096,2716.0,2715.5,1.79026497]
[1739782470025,1.84077,2716.3,2715.7,0.55]
[1739782470211,1.84072,2716.4,2715.8,3.68211]
[1739782470826,1.84072,2716.4,2715.7,4.23224]
[1739782471034,1.84084,2716.2,2715.7,4.23224]
[1739782471326,1.84078,2716.3,2715.7,0.55]
[1739782471497,0.768,2716.5,2715.7,0.55]
[1739782471700,1.84088,2716.1,2715.7,0.55]
[1739782472797,1.84098,2716.0,2715.5,1.24026497]
[1739782473027,1.84075,2716.3,2715.4,3.8042]
[1739782473225,2.60862,2716.5,2715.6,0.55]
[1739782473226,1.84096,2716.0,2715.6,0.55]
[1739782473435,3.68194,2716.0,2715.6,0.55]
[1739782473639,0.768,2716.5,2715.5,0.55]
[1739782473811,1.84107,2715.9,2715.5,0.55]
[1739782474013,1.84112,2715.8,2715.5,0.55]
[1739782474732,1.84117,2715.7,2715.5,0.55]
[1739782475530,1.84108,2715.8,2715.5,0.55]
[1739782475697,3.68221,2715.8,2715.5,0.55]
[1739782475902,1.84113,2715.8,2715.5,0.55]
[1739782476337,1.84102,2715.9,2715.5,0.55]
[1739782477022,1.84104,2715.9,2715.5,0.55]
[1739782477228,1.84108,2715.8,2715.5,0.55]
[1739782478036,1.8408,2716.2,2715.5,1.353701]
[1739782478331,2.6086,2716.5,2715.5,1.353701]
[1739782478332,0.338,2716.1,2715.5,1.353701]
[1739782478646,1.84111,2715.8,2715.5,0.55]
[1739782478799,0.338,2716.1,2715.4,0.8042]
[1739782478800,1.84123,2715.6,2715.4,0.8042]
[1739782479005,1.84095,2716.0,2715.4,0.8042]
[1739782479235,1.84121,2715.6,2715.2,0.55]
[1739782479606,1.84121,2715.6,2715.2,7.23296]
[1739782479955,0.338,2716.1,2715.2,3.55]
[1739782480254,1.84106,2715.9,2715.4,0.55]
[1739782480721,1.84105,2715.9,2715.4,5.024261]
[1739782481322,1.84111,2715.8,2715.4,1.341571]
[1739782481639,1.84108,2715.8,2715.4,4.23269]
[1739782481935,1.84108,2715.8,2715.4,0.55]
[1739782482337,2.17795,2716.0,2715.4,0.55]
[1739782482517,2.17795,2716.0,2715.5,3.68249]
[1739782483111,0.335,2716.2,2715.7,3.68229]
[1739782483329,2.17584,2716.2,2715.7,3.68229]
[1739782484143,1.8409,2716.1,2715.6,3.6824]
[1739782484340,2.17581,2716.2,2715.7,3.68222]
[1739782484531,1.8409,2716.1,2715.7,0.7631]
[1739782484731,1.84081,2716.2,2715.7,4.44538]
[1739782484935,3.68166,2716.2,2715.7,4.44538]
[1739782485133,1.84088,2716.1,2715.7,0.7631]
[1739782485641,1.84081,2716.2,2715.7,0.7631]
[1739782485855,1.84096,2716.0,2715.6,0.55]
[1739782486060,1.84096,2716.0,2715.6,4.2324]
[1739782486545,1.84101,2715.9,2715.5,3.6825]
[1739782486712,1.84101,2715.9,2715.5,0.55]
[1739782486912,1.84101,2715.9,2715.4,4.49582]
[1739782487348,1.84092,2716.1,2715.5,3.68247]
[1739782487349,1.84094,2716.0,2715.5,3.68247]
[1739782487550,1.84094,2716.0,2715.6,0.3370947]
[1739782487732,0.334,2716.3,2715.6,0.8870947]
[1739782487916,1.84097,2716.0,2715.6,0.8870947]
[1739782488448,1.84097,2716.0,2715.7,0.26982207]
[1739782488649,1.8409,2716.1,2715.7,0.26982207]
[1739782488650,1.84101,2715.9,2715.7,0.26982207]
[1739782488862,1.84107,2715.8,2715.7,0.26982207]
[1739782489747,1.84107,2715.8,2715.6,0.3370947]
[1739782489748,1.84114,2715.7,2715.6,0.3370947]
[1739782490815,1.186692,2715.9,2715.3,0.3370947]
[1739782491019,1.84134,2715.5,2715.3,0.3370947]
[1739782491216,1.84134,2715.5,2715.3,0.60691677]
[1739782491417,1.84117,2715.7,2715.3,0.60691677]
[1739782491840,1.84132,2715.5,2715.3,0.60691677]
[1739782492036,1.84132,2715.5,2715.4,0.28388267]
[1739782492267,1.84114,2715.7,2715.4,0.28388267]
[1739782492419,1.84114,2715.7,2715.4,0.62097737]
[1739782492420,3.68233,2715.7,2715.4,0.62097737]
[1739782492619,1.84114,2715.7,2715.4,0.62097737]
[1739782493051,1.84114,2715.7,2715.5,0.26982207]
[1739782493361,1.84121,2715.6,2715.5,0.26982207]
[1739782494055,1.84121,2715.6,2715.5,0.55370474]
[1739782494353,2.209445,2715.6,2715.5,0.89079944]
[1739782496033,2.209445,2715.6,2715.5,0.55370474]
[1739782496625,1.84142,2715.3,2714.8,4.22149944]
[1739782496825,1.84142,2715.3,2714.8,7.90492944]
[1739782497056,1.84142,2715.3,2714.8,7.90490944]
[1739782497259,1.84142,2715.3,2714.8,4.22149944]
[1739782497443,1.84142,2715.3,2714.9,0.3383714]
[1739782497758,1.84149,2715.2,2714.9,0.3383714]
[1739782497954,1.84155,2715.1,2714.9,0.3383714]
[1739782498451,1.84155,2715.1,2715.0,0.28488332]
[1739782499259,0.328,2715.4,2715.0,0.62325472]
[1739782499458,1.8694,2715.4,2715.0,0.62325472]
[1739782499621,1.84155,2715.1,2715.0,0.62325472]
[1739782500160,3.68303,2715.2,2715.0,0.62325472]
[1739782500349,1.84155,2715.1,2715.0,0.3383714]
[1739782501358,1.84162,2715.0,2714.9,0.3383714]
[1739782501862,0.8291,2715.2,2714.9,0.3383714]
[1739782502242,1.84148,2715.2,2714.9,0.3383714]
[1739782502649,1.84148,2715.2,2714.8,0.3383714]